[Event "Early-Titled-Tuesday-Blitz-July-09-2024"]
[Site "Chess.com"]
[Date "2024.07.09"]
[Round "5"]
[White "stepanosinovsky"]
[Black "rhungaski"]
[Result "0-1"]
[WhiteElo "2344"]
[BlackElo "2644"]
[TimeControl "180+1"]
[EndTime "8:57:40 PDT"]
[Termination "rhungaski won by resignation"]

1. e4 {[%clk 0:03:00.9]} 1... e6 {[%clk 0:02:59.9]} 2. d3 {[%clk 0:03:00.4]}
2... d5 {[%clk 0:02:56.9]} 3. Nd2 {[%clk 0:03:01.3]} 3... c5 {[%clk 0:02:54.7]}
4. Ngf3 {[%clk 0:03:00.5]} 4... Nc6 {[%clk 0:02:54.7]} 5. g3 {[%clk 0:03:00.8]}
5... Nf6 {[%clk 0:02:54.4]} 6. Bg2 {[%clk 0:03:01]} 6... g6 {[%clk 0:02:54.9]}
7. O-O {[%clk 0:03:00.9]} 7... Bg7 {[%clk 0:02:55.5]} 8. Re1 {[%clk 0:03:01.1]}
8... O-O {[%clk 0:02:55.2]} 9. c3 {[%clk 0:03:01.3]} 9... a5 {[%clk 0:02:51.5]}
10. a4 {[%clk 0:03:00.4]} 10... b6 {[%clk 0:02:51.4]} 11. exd5 {[%clk
0:02:57.1]} 11... Nxd5 {[%clk 0:02:50.9]} 12. Nc4 {[%clk 0:02:56.5]} 12... Bb7
{[%clk 0:02:48.4]} 13. h4 {[%clk 0:02:56.4]} 13... h6 {[%clk 0:02:42.7]} 14. Qb3
{[%clk 0:02:51.4]} 14... Rb8 {[%clk 0:02:39.7]} 15. Bd2 {[%clk 0:02:49]} 15...
Ba6 {[%clk 0:02:34.9]} 16. Rad1 {[%clk 0:02:46.4]} 16... Qe7 {[%clk 0:02:24.2]}
17. h5 {[%clk 0:02:39.7]} 17... g5 {[%clk 0:02:23.8]} 18. Nxg5 {[%clk
0:02:39.6]} 18... hxg5 {[%clk 0:01:57]} 19. Bxd5 {[%clk 0:02:39]} 19... exd5
{[%clk 0:01:57.9]} 20. Rxe7 {[%clk 0:02:35.5]} 20... dxc4 {[%clk 0:01:58.2]} 21.
dxc4 {[%clk 0:02:31.6]} 21... Nxe7 {[%clk 0:01:58.4]} 22. Bxg5 {[%clk
0:02:30.5]} 22... f6 {[%clk 0:01:52.4]} 23. Bf4 {[%clk 0:02:24]} 23... Rb7
{[%clk 0:01:49.9]} 24. Rd6 {[%clk 0:02:20.2]} 24... Nc8 {[%clk 0:01:45.1]} 25.
h6 {[%clk 0:02:15]} 25... Bxh6 {[%clk 0:01:36]} 26. Bxh6 {[%clk 0:01:45.3]}
26... Nxd6 {[%clk 0:01:35.5]} 27. Bxf8 {[%clk 0:01:37.1]} 27... Kxf8 {[%clk
0:01:36.4]} 28. Qd1 {[%clk 0:01:36.4]} 28... Rd7 {[%clk 0:01:09.9]} 29. b3
{[%clk 0:01:29.4]} 29... Bb7 {[%clk 0:01:07.7]} 30. Qg4 {[%clk 0:01:25.5]} 30...
Nf5 {[%clk 0:00:52.8]} 31. f3 {[%clk 0:01:14.6]} 31... Rd1+ {[%clk 0:00:44.9]}
32. Kf2 {[%clk 0:01:14.1]} 32... Rf1+ {[%clk 0:00:40.3]} 33. Kxf1 {[%clk
0:00:23.4]} 33... Ne3+ {[%clk 0:00:39.8]} 34. Kf2 {[%clk 0:00:23.5]} 34... Nxg4+
{[%clk 0:00:40.7]} 35. fxg4 {[%clk 0:00:23.8]} 35... Be4 {[%clk 0:00:38.4]} 36.
Ke3 {[%clk 0:00:20.1]} 36... Bc2 {[%clk 0:00:37.2]} 37. b4 {[%clk 0:00:21]}
37... axb4 {[%clk 0:00:26.8]} 38. cxb4 {[%clk 0:00:21.9]} 38... cxb4 {[%clk
0:00:27.3]} 0-1

[Event "Early-Titled-Tuesday-Blitz-July-09-2024"]
[Site "Chess.com"]
[Date "2024.07.09"]
[Round "5"]
[White "JJDAREK"]
[Black "ShimogaTactician"]
[Result "1-0"]
[WhiteElo "2355"]
[BlackElo "2512"]
[TimeControl "180+1"]
[EndTime "8:57:43 PDT"]
[Termination "JJDAREK won by checkmate"]

1. Nf3 {[%clk 0:03:00.9]} 1... b6 {[%clk 0:02:59.4]} 2. d4 {[%clk 0:02:54.7]}
2... Bb7 {[%clk 0:03:00.3]} 3. c4 {[%clk 0:02:53.8]} 3... e6 {[%clk 0:02:59.9]}
4. g3 {[%clk 0:02:50.7]} 4... Nf6 {[%clk 0:02:56.9]} 5. Bg2 {[%clk 0:02:50.1]}
5... Bb4+ {[%clk 0:02:57.3]} 6. Bd2 {[%clk 0:02:49.7]} 6... a5 {[%clk
0:02:57.7]} 7. O-O {[%clk 0:02:49]} 7... O-O {[%clk 0:02:57.2]} 8. Nc3 {[%clk
0:02:48.5]} 8... d5 {[%clk 0:02:46.4]} 9. cxd5 {[%clk 0:02:44.8]} 9... exd5
{[%clk 0:02:42.6]} 10. Ne5 {[%clk 0:02:35.9]} 10... Nbd7 {[%clk 0:02:42.5]} 11.
Bg5 {[%clk 0:02:19.6]} 11... Bxc3 {[%clk 0:02:20]} 12. bxc3 {[%clk 0:02:08.1]}
12... Re8 {[%clk 0:02:01.1]} 13. Nxd7 {[%clk 0:02:03.3]} 13... Qxd7 {[%clk
0:02:02]} 14. Bxf6 {[%clk 0:02:03.3]} 14... gxf6 {[%clk 0:02:02]} 15. c4 {[%clk
0:01:57.6]} 15... Rab8 {[%clk 0:01:49.3]} 16. cxd5 {[%clk 0:01:40.5]} 16... Bxd5
{[%clk 0:01:50.2]} 17. e3 {[%clk 0:01:34.7]} 17... Bxg2 {[%clk 0:01:43.3]} 18.
Kxg2 {[%clk 0:01:35.6]} 18... Kh8 {[%clk 0:01:43.6]} 19. Qf3 {[%clk 0:01:33.4]}
19... Re6 {[%clk 0:01:37.9]} 20. Rfc1 {[%clk 0:01:30.3]} 20... c6 {[%clk
0:01:37.3]} 21. Rc2 {[%clk 0:01:29.3]} 21... b5 {[%clk 0:01:35.9]} 22. Rac1
{[%clk 0:01:28.6]} 22... Rb6 {[%clk 0:01:34.2]} 23. Rc5 {[%clk 0:01:21.7]} 23...
a4 {[%clk 0:01:32.9]} 24. d5 {[%clk 0:01:05.8]} 24... cxd5 {[%clk 0:01:32]} 25.
Rc8+ {[%clk 0:00:58.9]} 25... Re8 {[%clk 0:01:31.9]} 26. Rxe8+ {[%clk
0:00:47.8]} 26... Qxe8 {[%clk 0:01:32.8]} 27. Qxd5 {[%clk 0:00:47.7]} 27... b4
{[%clk 0:01:21.2]} 28. Qd4 {[%clk 0:00:29.6]} 28... Qe6 {[%clk 0:01:07.7]} 29.
Qd8+ {[%clk 0:00:23.2]} 29... Kg7 {[%clk 0:01:07.5]} 30. Rc8 {[%clk 0:00:23.2]}
30... b3 {[%clk 0:00:44.4]} 31. axb3 {[%clk 0:00:20.9]} 31... axb3 {[%clk
0:00:45.3]} 32. Qf8+ {[%clk 0:00:18.8]} 32... Kg6 {[%clk 0:00:45.3]} 33. Qg8+
{[%clk 0:00:18.5]} 33... Kh6 {[%clk 0:00:44.9]} 34. Qf8+ {[%clk 0:00:15.6]}
34... Kh5 {[%clk 0:00:33.3]} 35. Qg7 {[%clk 0:00:12.3]} 35... Qe4+ {[%clk
0:00:28.6]} 36. f3 {[%clk 0:00:11.7]} 36... Qc2+ {[%clk 0:00:28.8]} 37. Kh3
{[%clk 0:00:12.1]} 37... Qg6 {[%clk 0:00:27.8]} 38. g4+ {[%clk 0:00:11.3]} 38...
Kg5 {[%clk 0:00:24.3]} 39. f4# {[%clk 0:00:11.5]} 1-0

[Event "Early-Titled-Tuesday-Blitz-July-09-2024"]
[Site "Chess.com"]
[Date "2024.07.09"]
[Round "5"]
[White "Andrey_Klymchuk"]
[Black "Zohid6"]
[Result "0-1"]
[WhiteElo "2753"]
[BlackElo "2985"]
[TimeControl "180+1"]
[EndTime "8:57:45 PDT"]
[Termination "Zohid6 won by resignation"]

1. e4 {[%clk 0:03:00.9]} 1... e5 {[%clk 0:02:59.8]} 2. Nf3 {[%clk 0:03:00.5]}
2... Nf6 {[%clk 0:03:00.1]} 3. Nxe5 {[%clk 0:03:00.1]} 3... d6 {[%clk
0:02:59.6]} 4. Nf3 {[%clk 0:03:00.5]} 4... Nxe4 {[%clk 0:02:59.1]} 5. Nc3 {[%clk
0:03:01]} 5... Nxc3 {[%clk 0:02:59.4]} 6. dxc3 {[%clk 0:03:01.9]} 6... Be7
{[%clk 0:02:59.8]} 7. Be3 {[%clk 0:03:02.1]} 7... Nd7 {[%clk 0:02:59.4]} 8. Qd2
{[%clk 0:03:02.5]} 8... O-O {[%clk 0:02:59.4]} 9. O-O-O {[%clk 0:03:02.2]} 9...
Nf6 {[%clk 0:02:59.7]} 10. Bd3 {[%clk 0:02:59.8]} 10... Re8 {[%clk 0:02:59.9]}
11. Ng5 {[%clk 0:02:51.6]} 11... d5 {[%clk 0:02:39.3]} 12. h4 {[%clk 0:02:43.9]}
12... c6 {[%clk 0:02:29.7]} 13. Bd4 {[%clk 0:02:38.3]} 13... h6 {[%clk
0:02:28.3]} 14. f3 {[%clk 0:02:36.4]} 14... Bd7 {[%clk 0:02:11.6]} 15. g4 {[%clk
0:02:30.6]} 15... c5 {[%clk 0:02:04.3]} 16. Be5 {[%clk 0:02:20]} 16... c4 {[%clk
0:02:03]} 17. Bxc4 {[%clk 0:01:35.3]} 17... dxc4 {[%clk 0:01:58.7]} 18. Bxf6
{[%clk 0:01:21.7]} 18... Bxf6 {[%clk 0:01:57.4]} 19. Ne4 {[%clk 0:01:21.1]}
19... Bc6 {[%clk 0:01:51.1]} 20. Qg2 {[%clk 0:01:15.7]} 20... Qe7 {[%clk
0:01:47.8]} 21. g5 {[%clk 0:01:15.3]} 21... Be5 {[%clk 0:01:45.9]} 22. gxh6
{[%clk 0:01:15]} 22... Bf4+ {[%clk 0:01:45.9]} 23. Kb1 {[%clk 0:01:14.2]} 23...
Bxh6 {[%clk 0:01:45.7]} 24. Ng5 {[%clk 0:01:04.9]} 24... Rad8 {[%clk 0:01:44.6]}
25. a3 {[%clk 0:01:03]} 25... Qf6 {[%clk 0:01:41.6]} 26. Rdg1 {[%clk 0:00:49.7]}
26... b5 {[%clk 0:01:36.5]} 27. Rh3 {[%clk 0:00:48.6]} 27... a5 {[%clk
0:01:34.4]} 28. Rg3 {[%clk 0:00:47.9]} 28... Re5 {[%clk 0:01:25.7]} 29. Qf2
{[%clk 0:00:46.7]} 29... Rde8 {[%clk 0:01:21.7]} 30. Qb6 {[%clk 0:00:41.1]}
30... Bxg5 {[%clk 0:01:07.2]} 31. hxg5 {[%clk 0:00:40.5]} 31... Qd6 {[%clk
0:01:06.2]} 32. g6 {[%clk 0:00:37.4]} 32... Re1+ {[%clk 0:01:01.1]} 33. Ka2
{[%clk 0:00:37.1]} 33... Rxg1 {[%clk 0:00:58.8]} 34. gxf7+ {[%clk 0:00:35.7]}
34... Kxf7 {[%clk 0:00:59.7]} 35. Rxg1 {[%clk 0:00:35.9]} 35... a4 {[%clk
0:00:54.2]} 36. f4 {[%clk 0:00:32.2]} 36... Re7 {[%clk 0:00:53]} 37. Rg5 {[%clk
0:00:31.7]} 37... Qxf4 {[%clk 0:00:45.9]} 38. Qc5 {[%clk 0:00:29.8]} 38... Be4
{[%clk 0:00:42.9]} 39. Rg1 {[%clk 0:00:23.8]} 39... Bxc2 {[%clk 0:00:39.5]} 40.
Qxb5 {[%clk 0:00:21.1]} 40... Bb3+ {[%clk 0:00:39.6]} 41. Ka1 {[%clk 0:00:21.1]}
41... Qe5 {[%clk 0:00:33.3]} 0-1

[Event "Early-Titled-Tuesday-Blitz-July-09-2024"]
[Site "Chess.com"]
[Date "2024.07.09"]
[Round "5"]
[White "ninjatrick"]
[Black "Sofia_Blokhin"]
[Result "1-0"]
[WhiteElo "2494"]
[BlackElo "2189"]
[TimeControl "180+1"]
[EndTime "8:57:46 PDT"]
[Termination "ninjatrick won on time"]

1. b3 {[%clk 0:02:58.6]} 1... d5 {[%clk 0:02:59.2]} 2. Nf3 {[%clk 0:02:58.7]}
2... e6 {[%clk 0:02:56.7]} 3. Bb2 {[%clk 0:02:58.6]} 3... Nf6 {[%clk 0:02:56.9]}
4. e3 {[%clk 0:02:58.5]} 4... Be7 {[%clk 0:02:57.1]} 5. Be2 {[%clk 0:02:54.8]}
5... O-O {[%clk 0:02:56.9]} 6. O-O {[%clk 0:02:53.3]} 6... b6 {[%clk 0:02:57.1]}
7. c4 {[%clk 0:02:52.9]} 7... Bb7 {[%clk 0:02:56.6]} 8. d4 {[%clk 0:02:52.8]}
8... Nbd7 {[%clk 0:02:54]} 9. Nc3 {[%clk 0:02:50.7]} 9... c5 {[%clk 0:02:53]}
10. cxd5 {[%clk 0:02:49.4]} 10... exd5 {[%clk 0:02:52.4]} 11. Rc1 {[%clk
0:02:48.1]} 11... Rc8 {[%clk 0:02:50.8]} 12. Ne5 {[%clk 0:02:40]} 12... a6
{[%clk 0:02:35.1]} 13. Qd2 {[%clk 0:02:11.4]} 13... cxd4 {[%clk 0:02:28]} 14.
exd4 {[%clk 0:02:08.3]} 14... Bb4 {[%clk 0:02:21.6]} 15. a3 {[%clk 0:01:54.2]}
15... Ne4 {[%clk 0:02:17.1]} 16. Qd3 {[%clk 0:01:46.9]} 16... Nxe5 {[%clk
0:02:14.1]} 17. dxe5 {[%clk 0:01:45.8]} 17... Bxc3 {[%clk 0:02:09.9]} 18. Bxc3
{[%clk 0:01:46.7]} 18... Qg5 {[%clk 0:02:03.3]} 19. f4 {[%clk 0:01:36]} 19...
Qg6 {[%clk 0:01:54.8]} 20. Bd4 {[%clk 0:01:31.2]} 20... Qf5 {[%clk 0:01:41.3]}
21. Bxb6 {[%clk 0:01:25.7]} 21... Rxc1 {[%clk 0:01:39.5]} 22. Rxc1 {[%clk
0:01:24.6]} 22... Qxf4 {[%clk 0:01:39.3]} 23. Rf1 {[%clk 0:01:19.6]} 23... Qxe5
{[%clk 0:01:38.3]} 24. Bd4 {[%clk 0:01:18.9]} 24... Qg5 {[%clk 0:01:37]} 25. Kh1
{[%clk 0:01:12.1]} 25... Rc8 {[%clk 0:01:33.1]} 26. Be3 {[%clk 0:01:11.5]} 26...
Qg6 {[%clk 0:01:30]} 27. Qd4 {[%clk 0:01:08.9]} 27... Nc3 {[%clk 0:01:17]} 28.
Bd3 {[%clk 0:00:48.7]} 28... Ne4 {[%clk 0:01:16.1]} 29. Kg1 {[%clk 0:00:40.7]}
29... Qg4 {[%clk 0:00:53.9]} 30. Qb6 {[%clk 0:00:35.3]} 30... Qd7 {[%clk
0:00:29.7]} 31. Rd1 {[%clk 0:00:32]} 31... Rc6 {[%clk 0:00:22.7]} 32. Qb4 {[%clk
0:00:28.7]} 32... Qc8 {[%clk 0:00:13.4]} 33. Bxe4 {[%clk 0:00:26.2]} 33... dxe4
{[%clk 0:00:13.3]} 34. Qe7 {[%clk 0:00:26.4]} 1-0

[Event "Early-Titled-Tuesday-Blitz-July-09-2024"]
[Site "Chess.com"]
[Date "2024.07.09"]
[Round "5"]
[White "RandomNoob04"]
[Black "Zheenbekov86"]
[Result "1-0"]
[WhiteElo "2764"]
[BlackElo "2472"]
[TimeControl "180+1"]
[EndTime "8:57:47 PDT"]
[Termination "RandomNoob04 won on time"]

1. e4 {[%clk 0:03:00.9]} 1... c6 {[%clk 0:02:59.4]} 2. d4 {[%clk 0:03:01.1]}
2... d5 {[%clk 0:02:59.5]} 3. exd5 {[%clk 0:03:02]} 3... cxd5 {[%clk 0:02:59.5]}
4. c4 {[%clk 0:03:02.9]} 4... Nf6 {[%clk 0:02:57.3]} 5. Nc3 {[%clk 0:03:03.3]}
5... Nc6 {[%clk 0:02:53.8]} 6. Bg5 {[%clk 0:03:02.9]} 6... Ne4 {[%clk
0:02:39.3]} 7. Nxe4 {[%clk 0:03:01.3]} 7... dxe4 {[%clk 0:02:39.2]} 8. d5 {[%clk
0:03:02.2]} 8... Ne5 {[%clk 0:02:36.8]} 9. Qd4 {[%clk 0:03:02.7]} 9... Ng6
{[%clk 0:02:32.7]} 10. Qxe4 {[%clk 0:03:01.9]} 10... Qb6 {[%clk 0:02:27.4]} 11.
c5 {[%clk 0:02:45.2]} 11... Qxc5 {[%clk 0:02:18.2]} 12. Rc1 {[%clk 0:02:44.6]}
12... Qa5+ {[%clk 0:02:15.7]} 13. Bd2 {[%clk 0:02:44.7]} 13... Qd8 {[%clk
0:02:15.5]} 14. Nf3 {[%clk 0:02:40.2]} 14... Bd7 {[%clk 0:02:09.4]} 15. Bc4
{[%clk 0:02:31.6]} 15... Qb6 {[%clk 0:01:47.1]} 16. O-O {[%clk 0:02:28.7]} 16...
O-O-O {[%clk 0:01:23.4]} 17. Be3 {[%clk 0:02:21.8]} 17... Qa5 {[%clk 0:01:19.9]}
18. b4 {[%clk 0:02:00.9]} 18... Qa3 {[%clk 0:01:14.6]} 19. Bf4 {[%clk
0:01:20.5]} 19... Nxf4 {[%clk 0:01:07.9]} 20. Qxf4 {[%clk 0:01:21.4]} 20... e5
{[%clk 0:01:08]} 21. dxe6 {[%clk 0:01:20.1]} 21... Bc6 {[%clk 0:00:56.7]} 22. b5
{[%clk 0:01:19.6]} 22... Bxf3 {[%clk 0:00:46.3]} 23. Be2+ {[%clk 0:00:56.6]}
23... Bc5 {[%clk 0:00:44.4]} 24. Bxf3 {[%clk 0:00:44.7]} 24... fxe6 {[%clk
0:00:35.6]} 25. Rxc5+ {[%clk 0:00:42.8]} 25... Qxc5 {[%clk 0:00:35.1]} 26. Rc1
{[%clk 0:00:43.5]} 26... Qxc1+ {[%clk 0:00:35.1]} 27. Qxc1+ {[%clk 0:00:44.4]}
27... Kb8 {[%clk 0:00:35.4]} 28. g3 {[%clk 0:00:43.4]} 28... Rd6 {[%clk
0:00:31.8]} 29. Qf4 {[%clk 0:00:42.8]} 29... Rd8 {[%clk 0:00:31.5]} 30. Qe5
{[%clk 0:00:43.3]} 30... g6 {[%clk 0:00:22.2]} 31. h4 {[%clk 0:00:40.4]} 31...
Kc7 {[%clk 0:00:18]} 32. h5 {[%clk 0:00:38.4]} 32... gxh5 {[%clk 0:00:17.3]} 33.
Qxh5 {[%clk 0:00:37.3]} 33... R8d7 {[%clk 0:00:12.9]} 34. a4 {[%clk 0:00:36.7]}
34... Rd4 {[%clk 0:00:07.9]} 35. a5 {[%clk 0:00:36.1]} 1-0

[Event "Early-Titled-Tuesday-Blitz-July-09-2024"]
[Site "Chess.com"]
[Date "2024.07.09"]
[Round "5"]
[White "Kombinator01"]
[Black "GrotBchess"]
[Result "0-1"]
[WhiteElo "2428"]
[BlackElo "2601"]
[TimeControl "180+1"]
[EndTime "8:57:53 PDT"]
[Termination "GrotBchess won by resignation"]

1. e4 {[%clk 0:02:56.8]} 1... c5 {[%clk 0:02:58.7]} 2. Nf3 {[%clk 0:02:55.5]}
2... e6 {[%clk 0:02:58.6]} 3. d4 {[%clk 0:02:47.8]} 3... cxd4 {[%clk 0:02:58.2]}
4. Nxd4 {[%clk 0:02:48]} 4... Nf6 {[%clk 0:02:58.7]} 5. Nc3 {[%clk 0:02:45.6]}
5... d6 {[%clk 0:02:58.2]} 6. Bb5+ {[%clk 0:02:42.3]} 6... Nbd7 {[%clk 0:02:55]}
7. Bg5 {[%clk 0:02:39.5]} 7... Be7 {[%clk 0:02:52.1]} 8. Nf3 {[%clk 0:02:32.8]}
8... a6 {[%clk 0:02:48.4]} 9. Bxf6 {[%clk 0:02:30.7]} 9... Bxf6 {[%clk
0:02:44.7]} 10. Bxd7+ {[%clk 0:02:16.4]} 10... Qxd7 {[%clk 0:02:43.2]} 11. Qd3
{[%clk 0:02:15.8]} 11... O-O {[%clk 0:02:39.1]} 12. Rd1 {[%clk 0:02:13.4]} 12...
Rd8 {[%clk 0:02:38.4]} 13. O-O {[%clk 0:02:08.4]} 13... Qc7 {[%clk 0:02:36.8]}
14. Rd2 {[%clk 0:01:56.1]} 14... b5 {[%clk 0:02:27.7]} 15. Rfd1 {[%clk
0:01:54.3]} 15... Bb7 {[%clk 0:02:27.1]} 16. Ne2 {[%clk 0:01:34.2]} 16... Bxb2
{[%clk 0:02:16.3]} 17. c3 {[%clk 0:01:33.1]} 17... Ba3 {[%clk 0:02:16.3]} 18. e5
{[%clk 0:01:30.8]} 18... Bxf3 {[%clk 0:02:04.9]} 19. gxf3 {[%clk 0:00:54.8]}
19... h6 {[%clk 0:01:45.8]} 20. Qe4 {[%clk 0:00:47.3]} 20... dxe5 {[%clk
0:01:41.7]} 21. Rxd8+ {[%clk 0:00:45.8]} 21... Rxd8 {[%clk 0:01:41.4]} 22. Rxd8+
{[%clk 0:00:45.7]} 22... Qxd8 {[%clk 0:01:41.9]} 23. Qxe5 {[%clk 0:00:44.9]}
23... Bd6 {[%clk 0:01:32.5]} 24. Qd4 {[%clk 0:00:35.6]} 24... Qc7 {[%clk
0:01:29.1]} 25. h4 {[%clk 0:00:29]} 25... h5 {[%clk 0:01:19.7]} 26. Qe4 {[%clk
0:00:28.9]} 26... Qc8 {[%clk 0:01:05.1]} 27. Kg2 {[%clk 0:00:28.2]} 27... g6
{[%clk 0:01:01.5]} 28. a4 {[%clk 0:00:27.9]} 28... Be7 {[%clk 0:00:52.2]} 29.
axb5 {[%clk 0:00:27.3]} 29... axb5 {[%clk 0:00:53.1]} 30. Qe5 {[%clk 0:00:23.2]}
30... Qc5 {[%clk 0:00:47.6]} 31. Qe4 {[%clk 0:00:16.7]} 31... Bf6 {[%clk
0:00:44.1]} 32. Nd4 {[%clk 0:00:16.6]} 32... Bxd4 {[%clk 0:00:42.9]} 33. cxd4
{[%clk 0:00:17.5]} 33... Qd5 {[%clk 0:00:42]} 34. Qb1 {[%clk 0:00:14.2]} 34...
Qxd4 {[%clk 0:00:38.7]} 35. Qxb5 {[%clk 0:00:14.3]} 35... Qxh4 {[%clk
0:00:38.7]} 36. Qe8+ {[%clk 0:00:14.2]} 36... Kg7 {[%clk 0:00:38.7]} 37. Qb8
{[%clk 0:00:14.1]} 37... Qg5+ {[%clk 0:00:38.3]} 38. Kf1 {[%clk 0:00:13.9]}
38... h4 {[%clk 0:00:37.1]} 39. Qb2+ {[%clk 0:00:13.2]} 39... Qf6 {[%clk
0:00:36.7]} 40. Qb8 {[%clk 0:00:12.6]} 40... Qxf3 {[%clk 0:00:35.5]} 41. Qb2+
{[%clk 0:00:12.3]} 41... Qf6 {[%clk 0:00:34.5]} 42. Kg1 {[%clk 0:00:11.9]} 42...
Qxb2 {[%clk 0:00:33.8]} 0-1

[Event "Early-Titled-Tuesday-Blitz-July-09-2024"]
[Site "Chess.com"]
[Date "2024.07.09"]
[Round "5"]
[White "Knightmare1014"]
[Black "Antosha_Chekhonte"]
[Result "1-0"]
[WhiteElo "2254"]
[BlackElo "2497"]
[TimeControl "180+1"]
[EndTime "8:57:54 PDT"]
[Termination "Knightmare1014 won on time"]

1. e4 {[%clk 0:03:00.9]} 1... e6 {[%clk 0:02:59.6]} 2. d4 {[%clk 0:02:59.4]}
2... d5 {[%clk 0:03:00.5]} 3. Nd2 {[%clk 0:02:58.1]} 3... Be7 {[%clk 0:02:57.4]}
4. Ngf3 {[%clk 0:02:54.6]} 4... Nf6 {[%clk 0:02:56.2]} 5. exd5 {[%clk
0:02:48.3]} 5... exd5 {[%clk 0:02:54.5]} 6. Bd3 {[%clk 0:02:48.4]} 6... O-O
{[%clk 0:02:52.5]} 7. h3 {[%clk 0:02:46.1]} 7... Nc6 {[%clk 0:02:43.1]} 8. c3
{[%clk 0:02:44.1]} 8... Bd6 {[%clk 0:02:43.3]} 9. O-O {[%clk 0:02:38.9]} 9...
Re8 {[%clk 0:02:43.6]} 10. Re1 {[%clk 0:02:26.8]} 10... Rxe1+ {[%clk 0:02:42]}
11. Qxe1 {[%clk 0:02:26.6]} 11... Ne7 {[%clk 0:02:38.1]} 12. Nf1 {[%clk
0:02:24.7]} 12... Bf5 {[%clk 0:02:36.4]} 13. Bxf5 {[%clk 0:02:17.9]} 13... Nxf5
{[%clk 0:02:37.3]} 14. Bg5 {[%clk 0:02:17]} 14... h6 {[%clk 0:02:36.3]} 15. Bxf6
{[%clk 0:02:16.4]} 15... Qxf6 {[%clk 0:02:36.4]} 16. Ne5 {[%clk 0:01:59.9]}
16... Re8 {[%clk 0:02:31.2]} 17. f4 {[%clk 0:01:59.9]} 17... h5 {[%clk
0:02:24.6]} 18. Ne3 {[%clk 0:01:48.9]} 18... Nxe3 {[%clk 0:02:21.2]} 19. Qxe3
{[%clk 0:01:48.6]} 19... Qf5 {[%clk 0:02:21.9]} 20. Rf1 {[%clk 0:01:42]} 20...
f6 {[%clk 0:02:19.8]} 21. Qd3 {[%clk 0:01:32.7]} 21... Rxe5 {[%clk 0:02:16.5]}
22. Qb5 {[%clk 0:01:27.2]} 22... Re4 {[%clk 0:02:09]} 23. Qxb7 {[%clk
0:01:26.1]} 23... a5 {[%clk 0:02:01.5]} 24. Qa8+ {[%clk 0:01:21.9]} 24... Kh7
{[%clk 0:02:00.8]} 25. Qxa5 {[%clk 0:01:21.9]} 25... Re2 {[%clk 0:01:55.6]} 26.
Qb5 {[%clk 0:01:12.1]} 26... Qe4 {[%clk 0:01:53.8]} 27. Rf2 {[%clk 0:01:09.9]}
27... Re1+ {[%clk 0:01:54]} 28. Rf1 {[%clk 0:01:06.8]} 28... Bxf4 {[%clk
0:01:47.9]} 29. a4 {[%clk 0:00:56.7]} 29... Qe3+ {[%clk 0:01:46.6]} 30. Kh1
{[%clk 0:00:56.2]} 30... Qg3 {[%clk 0:01:42.1]} 31. Kg1 {[%clk 0:00:50.3]} 31...
Be3+ {[%clk 0:01:30.1]} 32. Kh1 {[%clk 0:00:48.4]} 32... Qf2 {[%clk 0:01:28.6]}
33. Qd3+ {[%clk 0:00:45.2]} 33... Kh8 {[%clk 0:01:23.9]} 34. Rxe1 {[%clk
0:00:45.2]} 34... Qxe1+ {[%clk 0:01:22.9]} 35. Kh2 {[%clk 0:00:45.6]} 35... Bg1+
{[%clk 0:01:22]} 36. Kh1 {[%clk 0:00:44.8]} 36... Bf2+ {[%clk 0:01:22.9]} 37.
Kh2 {[%clk 0:00:42.9]} 37... Bg3+ {[%clk 0:01:23.4]} 38. Qxg3 {[%clk 0:00:40.8]}
38... Qa1 {[%clk 0:01:12.6]} 39. Qxc7 {[%clk 0:00:35.6]} 1-0

[Event "Early-Titled-Tuesday-Blitz-July-09-2024"]
[Site "Chess.com"]
[Date "2024.07.09"]
[Round "5"]
[White "Yan_Dyomin2010"]
[Black "GM_Huschenbeth"]
[Result "1-0"]
[WhiteElo "2753"]
[BlackElo "2514"]
[TimeControl "180+1"]
[EndTime "8:57:55 PDT"]
[Termination "Yan_Dyomin2010 won on time"]

1. e4 {[%clk 0:03:00.9]} 1... c5 {[%clk 0:02:59.8]} 2. Nf3 {[%clk 0:02:58.8]}
2... d5 {[%clk 0:02:59.7]} 3. exd5 {[%clk 0:02:58.4]} 3... Nf6 {[%clk
0:02:58.1]} 4. d4 {[%clk 0:02:38.1]} 4... cxd4 {[%clk 0:02:53.5]} 5. Qxd4 {[%clk
0:02:38.3]} 5... Qxd5 {[%clk 0:02:51.4]} 6. Nc3 {[%clk 0:02:37.8]} 6... Qxd4
{[%clk 0:02:51.3]} 7. Nxd4 {[%clk 0:02:38.7]} 7... a6 {[%clk 0:02:49.5]} 8. g3
{[%clk 0:02:34.6]} 8... e5 {[%clk 0:02:48.4]} 9. Nb3 {[%clk 0:02:34.3]} 9... Nc6
{[%clk 0:02:40.1]} 10. Bg5 {[%clk 0:02:27.2]} 10... Bb4 {[%clk 0:02:34.3]} 11.
Bd2 {[%clk 0:02:20.3]} 11... Bf5 {[%clk 0:02:15]} 12. O-O-O {[%clk 0:02:18.8]}
12... O-O-O {[%clk 0:02:09.3]} 13. Bg2 {[%clk 0:02:15.9]} 13... Bxc3 {[%clk
0:01:35.1]} 14. Bxc3 {[%clk 0:02:12.3]} 14... Be4 {[%clk 0:01:35.6]} 15. f3
{[%clk 0:02:10]} 15... Bd5 {[%clk 0:01:28.8]} 16. Rhe1 {[%clk 0:02:07.8]} 16...
Rhe8 {[%clk 0:01:28]} 17. Nc5 {[%clk 0:02:07.3]} 17... Kc7 {[%clk 0:01:21.8]}
18. b3 {[%clk 0:02:04.9]} 18... a5 {[%clk 0:01:19.6]} 19. Nd3 {[%clk 0:02:04.3]}
19... Nd7 {[%clk 0:01:08.4]} 20. Re3 {[%clk 0:01:56.9]} 20... f6 {[%clk
0:01:06.9]} 21. Rde1 {[%clk 0:01:57.1]} 21... a4 {[%clk 0:01:05.2]} 22. Bh3
{[%clk 0:01:56.2]} 22... h5 {[%clk 0:00:48.1]} 23. Bf5 {[%clk 0:01:47.4]} 23...
h4 {[%clk 0:00:45.2]} 24. f4 {[%clk 0:01:46.4]} 24... hxg3 {[%clk 0:00:41.6]}
25. hxg3 {[%clk 0:01:46.1]} 25... axb3 {[%clk 0:00:31.5]} 26. axb3 {[%clk
0:01:44.8]} 26... e4 {[%clk 0:00:13.7]} 27. Bxe4 {[%clk 0:01:38.4]} 27... Bxe4
{[%clk 0:00:12.7]} 28. Rxe4 {[%clk 0:01:39.3]} 28... Rxe4 {[%clk 0:00:13.1]} 29.
Rxe4 {[%clk 0:01:40.2]} 29... Rh8 {[%clk 0:00:13.5]} 30. g4 {[%clk 0:01:39.4]}
30... Rh4 {[%clk 0:00:12.7]} 31. f5 {[%clk 0:01:39.5]} 31... Rh2 {[%clk
0:00:12.4]} 32. Nf4 {[%clk 0:01:33.8]} 32... Rh1+ {[%clk 0:00:11.5]} 33. Kb2
{[%clk 0:01:33.7]} 33... Nc5 {[%clk 0:00:12.1]} 34. Rc4 {[%clk 0:01:29.5]} 34...
Kd6 {[%clk 0:00:10.9]} 35. Nh5 {[%clk 0:01:18.6]} 35... Rg1 {[%clk 0:00:08.8]}
36. Nxg7 {[%clk 0:01:18.1]} 36... b5 {[%clk 0:00:07.2]} 37. Ne8+ {[%clk
0:01:15.3]} 37... Kd5 {[%clk 0:00:06.9]} 38. Nxf6+ {[%clk 0:01:15.7]} 38... Kd6
{[%clk 0:00:06.7]} 39. Rf4 {[%clk 0:01:13.1]} 39... Rg2 {[%clk 0:00:05.8]} 40.
Ne4+ {[%clk 0:01:11.9]} 40... Nxe4 {[%clk 0:00:04.6]} 41. Rxe4 {[%clk
0:01:12.8]} 41... Kd5 {[%clk 0:00:04.6]} 42. Rf4 {[%clk 0:01:13.4]} 42... b4
{[%clk 0:00:03.4]} 43. Bxb4 {[%clk 0:01:13.6]} 43... Ne5 {[%clk 0:00:04.2]} 44.
Kb1 {[%clk 0:01:00.8]} 44... Nxg4 {[%clk 0:00:04]} 45. f6 {[%clk 0:00:59.7]}
45... Ne3 {[%clk 0:00:02.4]} 46. f7 {[%clk 0:00:58.3]} 46... Rg1+ {[%clk
0:00:02.4]} 47. Kb2 {[%clk 0:00:58.3]} 47... Nd1+ {[%clk 0:00:02.6]} 48. Ka3
{[%clk 0:00:58.7]} 48... Ne3 {[%clk 0:00:01.2]} 49. f8=Q {[%clk 0:00:56.2]}
49... Nxc2+ {[%clk 0:00:01.2]} 50. Kb2 {[%clk 0:00:56.6]} 1-0